fUST/lending_fUST_20240512
["ID","MTS","AMOUNT","RATE_DAILY","PERIOD"]
[326838197,1715495442527,-151.0,0.00019141,2]
[326838198,1715495442537,-370.081115,0.00019141,2]
[326838199,1715495442545,-370.081115,0.00019141,2]
[326838200,1715495442554,-1687.24563379,0.00019146,2]
[326838201,1715495442563,-151.702634,0.00019146,2]
[326838202,1715495442573,-151.0,0.00019146,2]
[326838203,1715495442582,-552.417157,0.00019146,2]
[326838204,1715495442591,-552.417157,0.00019146,2]
[326838205,1715495442600,-191.672928,0.00019146,2]
[326838206,1715495442609,-191.672928,0.00019146,2]
[326838207,1715495442618,-213.840396,0.00019146,2]
[326838208,1715495442628,-304.324815,0.00019146,2]
[326838209,1715495442637,-271.712053,0.00019146,2]
[326838210,1715495442646,-151.0,0.00019146,2]
[326838211,1715495442655,-101.90788801,0.00019146,2]
[326838245,1715495443887,-202.41692699,0.00019146,2]
[326838246,1715495443896,-271.712053,0.00019146,2]
[326838247,1715495443905,-151.0,0.00019146,2]
[326838248,1715495443914,-286.867318,0.00019146,2]
[326838249,1715495443923,-151.0,0.00019146,2]
[326838250,1715495443932,-202.341176,0.00019146,2]
[326838251,1715495443941,-202.341176,0.00019146,2]
[326838252,1715495443951,-240.391956,0.00019146,2]
[326838253,1715495443961,-240.391956,0.00019146,2]
[326838254,1715495443970,-151.0,0.00019146,2]
[326838255,1715495443979,-448.01851,0.00019146,2]
[326838256,1715495443988,-448.01851,0.00019146,2]
[326838257,1715495443997,-370.081115,0.00019146,2]
[326838258,1715495444006,-370.081115,0.00019146,2]
[326838259,1715495444014,-154.97087017,0.00019149,2]
[326838260,1715495444024,-240.391956,0.00019149,2]
[326838261,1715495444033,-240.391956,0.00019149,2]
[326838262,1715495444042,-448.01851,0.00019149,2]
[326838263,1715495444051,-448.01851,0.00019149,2]
[326838264,1715495444060,-494.18141025,0.00019157,2]
[326838265,1715495444069,-151.0,0.00019157,2]
[326838266,1715495444078,-202.341176,0.00019157,2]
[326838267,1715495444087,-202.341176,0.00019157,2]
[326838268,1715495444096,-1583.87117619,0.00019158,2]
[326838269,1715495444105,-151.0,0.00019158,2]
[326838270,1715495444114,-151.0,0.00019158,2]
[326838271,1715495444123,-151.0,0.00019158,2]
[326838272,1715495444132,-552.417157,0.00019158,2]
[326838273,1715495444142,-552.417157,0.00019158,2]
[326838274,1715495444150,-191.672928,0.00019158,2]
[326838275,1715495444159,-191.672928,0.00019158,2]
[326838276,1715495444168,-304.324815,0.00019158,2]
[326838277,1715495444177,-271.712053,0.00019158,2]
[326838278,1715495444186,-151.0,0.00019158,2]
[326838279,1715495444195,-304.324815,0.00019158,2]
[326838280,1715495444204,-271.712053,0.00019158,2]
[326838281,1715495444213,-151.0,0.00019158,2]
[326838282,1715495444222,-151.0,0.00019158,2]
[326838283,1715495444231,-202.341176,0.00019158,2]
[326838284,1715495444241,-202.341176,0.00019158,2]
[326838285,1715495444249,-240.391956,0.00019158,2]
[326838286,1715495444258,-240.391956,0.00019158,2]
[326838287,1715495444268,-151.0,0.00019158,2]
[326838288,1715495444277,-448.01851,0.00019158,2]
[326838289,1715495444287,-198.344532,0.00019158,2]
[326838290,1715495444296,-448.01851,0.00019158,2]
[326838291,1715495444305,-370.081115,0.00019158,2]
[326838292,1715495444314,-370.081115,0.00019158,2]
[326838293,1715495444323,-370.081115,0.00019158,2]
[326838294,1715495444332,-370.081115,0.00019158,2]
[326838295,1715495444342,-2481.52109476,0.00019161,2]
[326838296,1715495444351,-552.417157,0.00019161,2]
[326838297,1715495444360,-552.417157,0.00019161,2]
[326838298,1715495444369,-191.672928,0.00019161,2]
[326838299,1715495444378,-191.672928,0.00019161,2]
[326838300,1715495444387,-304.324815,0.00019161,2]
[326838301,1715495444397,-271.712053,0.00019161,2]
[326838302,1715495444406,-304.324815,0.00019161,2]
[326838303,1715495444415,-151.0,0.00019161,2]
[326838304,1715495444425,-271.712053,0.00019161,2]
[326838305,1715495444435,-151.0,0.00019161,2]
[326838306,1715495444444,-244.877713,0.00019161,2]
[326838307,1715495444453,-202.341176,0.00019161,2]
[326838308,1715495444462,-202.341176,0.00019161,2]
[326838310,1715495444472,-240.391956,0.00019161,2]
[326838312,1715495444481,-240.391956,0.00019161,2]
[326838314,1715495444491,-448.01851,0.00019161,2]
[326838315,1715495444500,-448.01851,0.00019161,2]
[326838316,1715495444510,-370.081115,0.00019161,2]
[326838317,1715495444520,-370.081107,0.00019161,2]
[326838318,1715495444530,-154.92646823,0.00019162,2]
[326838320,1715495444539,-304.324815,0.00019162,2]
[326838321,1715495444548,-304.324815,0.00019162,2]
[326838322,1715495444557,-151.0,0.00019162,2]
[326838323,1715495444566,-151.0,0.00019162,2]
[326838324,1715495444575,-747.27102381,0.00019166,2]
[326838325,1715495444585,-151.0,0.00019166,2]
[326838326,1715495444594,-271.712053,0.00019166,2]
[326838327,1715495444603,-271.712053,0.00019166,2]
[326838328,1715495444612,-240.391956,0.00019166,2]
[326838329,1715495444621,-240.391948,0.00019166,2]
[326838330,1715495444630,-448.01851,0.00019166,2]
[326838331,1715495444639,-448.01851,0.00019166,2]
[326838332,1715495444648,-285.73380573,0.00019172,2]
[326838333,1715495444657,-202.341176,0.00019172,2]
[326838334,1715495444666,-202.341185,0.00019172,2]
[326838335,1715495444676,-411.16593848,0.00019174,2]
[326838336,1715495444686,-552.417157,0.00019174,2]
[326838337,1715495444694,-552.417157,0.00019174,2]
[326838338,1715495444703,-191.672928,0.00019174,2]
[326838339,1715495444712,-191.672928,0.00019174,2]
[326838340,1715495444721,-24155.91176661,0.00019175,2]
[326838341,1715495444846,-552.417157,0.00019175,2]
[326838342,1715495444855,-552.417157,0.00019175,2]
[326838343,1715495444864,-191.672928,0.00019175,2]
[326838344,1715495444873,-191.672928,0.00019175,2]
[326838345,1715495444881,-304.324815,0.00019175,2]
[326838346,1715495444891,-271.712053,0.00019175,2]
[326838347,1715495444900,-304.32482227,0.00019175,2]
[326838348,1715495444908,-218.025768,0.00019175,2]
[326838349,1715495444917,-271.712053,0.00019175,2]
[326838350,1715495444926,-151.0,0.00019175,2]
[326838351,1715495444934,-586.34285989,0.00019177,2]
[326838352,1715495444944,-500.0,0.00019178,2]
[326838353,1715495444952,-500.0,0.00019178,2]
[326838354,1715495444961,-522.21105025,0.00019178,2]
[326838355,1715495444970,-500.0,0.00019178,2]
[326838356,1715495444978,-500.0,0.00019178,2]
[326838357,1715495444987,-568.39722925,0.00019178,2]
[326838358,1715495444996,-500.0,0.00019178,2]
[326838359,1715495445005,-118.98284171,0.00019178,2]
[326838407,1715495446598,-232.21,0.00019168,3]
[326838408,1715495446608,-381.01715829,0.00019178,2]
[326838409,1715495446617,-386.28743129,0.00019178,2]
[326838410,1715495446630,-119.55042853,0.00019178,2]
[326838411,1715495446641,-505.83785982,0.00019178,2]
[326838412,1715495446651,-505.83785982,0.00019178,2]
[326838413,1715495446660,-401.61566011,0.00019178,2]
[326838414,1715495516775,292.37560477,9.999e-05,2]
[326838415,1715495549238,154.75239617,9.999e-05,2]
[326838416,1715495583340,15617.8246169,9.999e-05,2]
[326838417,1715495583912,364.58612671,9.999e-05,2]
[326838418,1715495588050,154.97476449,0.0001,2]
[326838419,1715495589278,281.27568752,9.999e-05,2]
[326838420,1715495591442,224.28949653,9.999e-05,2]
[326838421,1715495605847,364.58612671,9.999e-05,2]
[326838422,1715495607096,281.27568752,9.999e-05,2]
[326838423,1715495609419,224.28949653,9.999e-05,2]
[326838424,1715495611144,465.56886578,9.999e-05,2]
[326838425,1715495623843,364.58612671,9.999e-05,2]
[326838426,1715495629119,279.41371548,9.999e-05,2]
[326838427,1715495631424,224.28949653,9.999e-05,2]
[326838428,1715495643846,364.58612671,9.999e-05,2]
[326838429,1715495653462,224.28949653,9.999e-05,2]
[326838430,1715495659840,274.36097507,9.999e-05,2]
[326838431,1715495673458,224.28949653,9.999e-05,2]
[326838434,1715495693806,224.28949653,9.999e-05,2]
[326838435,1715495709431,224.28949653,9.999e-05,2]
[326838436,1715495727531,224.28949653,9.999e-05,2]
[326838437,1715495747438,224.28949653,9.999e-05,2]
[326838438,1715495769446,224.28949653,9.999e-05,2]
[326838439,1715495787443,224.28949653,9.999e-05,2]
[326838440,1715495796180,16127.46267544,9.999e-05,2]
[326838441,1715495807454,224.28949653,9.999e-05,2]
[326838442,1715495825458,224.28949653,9.999e-05,2]
[326838444,1715495845052,930.46303652,0.00014,2]
[326838445,1715495845458,224.28949653,9.999e-05,2]
[326838446,1715495855039,21694.1631672,0.00016156,2]
[326838447,1715495865054,935.9524212,0.00016296,2]
[326838448,1715495867467,224.28949653,9.999e-05,2]
[326838449,1715495887474,264.9336051,9.999e-05,2]
[326838450,1715495916117,16127.46267544,9.999e-05,2]
[326838451,1715495920531,24900.0,0.00016156,2]
[326838452,1715495934112,1331.83879056,9.999e-05,2]
[326838453,1715495955438,972.43,0.00010959,2]
[326838454,1715495958526,25332.7417011,0.00016156,2]
[326838455,1715495958559,904.83466521,9.999e-05,2]
[326838456,1715495966234,810.36,0.00010959,2]
[326838457,1715495969912,770.89351422,0.0001,2]
[326838458,1715495976751,675.3,0.00010959,2]
[326838459,1715495980747,285.37029775,0.00015,2]
[326838460,1715495983925,778.26718565,0.00015438,2]
[326838461,1715495987248,562.75,0.00010959,2]
[326838462,1715495996670,285.37029775,0.00015,2]
[326838463,1715495996707,548.026713,0.00016156,2]
[326838464,1715495997754,468.96,0.00010959,2]
[326838465,1715496008496,390.8,0.00010959,2]
[326838466,1715496014023,250.0,0.00016156,2]
[326838467,1715496016672,285.37029775,0.00015,2]
[326838468,1715496019002,390.8,0.00010959,2]
[326838469,1715496029579,260.53,0.00010959,2]
[326838470,1715496032689,262.45656091,0.00015,2]
[326838471,1715496040086,217.11,0.00010959,2]
[326838472,1715496040948,2998.0356249,0.00016156,2]
[326838473,1715496050701,180.92,0.00010959,2]
[326838474,1715496053563,198.5121671,0.00016156,2]
[326838475,1715496061199,150.77,0.00010959,2]
[326838476,1715496070088,154.75239617,0.00010959,2]
[326838477,1715496071704,753.88,0.00010959,2]
[326838478,1715496084701,236.28343154,9.999e-05,2]
[326838479,1715496087014,941.38915188,0.00015,2]
[326838480,1715496090082,164.84023837,0.00016156,2]
[326838481,1715496093851,617.0217302,0.00016156,2]
[326838482,1715496120452,484.2157883,9.999e-05,2]
[326838483,1715496141664,1042.26396896,9.999e-05,2]
[326838484,1715496178868,465.56886578,9.999e-05,2]
[326838485,1715496209665,447.34798474,9.999e-05,2]
[326838486,1715496217633,1020.980765,0.00016155,2]
[326838495,1715496323808,795.9983531,0.00016155,2]
[326838496,1715496364799,1277.8631854,0.00016134,2]
[326838497,1715496372019,770.55057017,0.00015438,2]
[326838498,1715496391971,709.92894196,0.00015438,2]
[326838499,1715496416068,24900.0,0.00016134,2]
[326838500,1715496474448,787.774946,0.00016134,2]
[326838501,1715496483941,250.0,0.00016134,2]
[326838508,1715496580092,15424.06920766,0.00016952,2]
[326838533,1715496632785,-171.11304447,0.00017052,2]
[326838534,1715496632794,-237.55587717,0.00017053,2]
[326838535,1715496632804,-944.93299302,0.00017057,2]
[326838537,1715496632813,-20225.81205785,0.00017152,2]
[326838539,1715496632823,-849.31155451,0.00017153,2]
[326838541,1715496632832,-309.4430026,0.00017153,2]
[326838543,1715496632841,-1579.16991007,0.00017153,2]
[326838545,1715496632851,-236.13620026,0.00017153,2]
[326838547,1715496632860,-329.45196831,0.00017153,2]
[326838549,1715496632869,-1041.73603104,0.00017153,2]
[326838551,1715496632878,-448.28187838,0.00017153,2]
[326838553,1715496632887,-616.96689842,0.00017154,2]
[326838555,1715496632896,-57743.21602862,0.00017155,2]
[326838557,1715496632905,-3478.8620839,0.00017157,2]
[326838559,1715496632915,-237.55587714,0.00017557,2]
[326838561,1715496632923,-153.0,0.000177,2]
[326838563,1715496632932,-1345.64620971,0.00018,2]
[326838565,1715496632942,-237.55587714,0.00018062,2]
[326838567,1715496632951,-237.55587714,0.00018566,2]
[326838569,1715496632961,-579.10858569,0.000189,2]
[326838570,1715496632971,-226.74571426,0.00018986,2]
[326838571,1715496632980,-237.55587714,0.0001907,2]
[326838572,1715496632990,-1106.9850932,0.00019135,2]
[326838573,1715496633000,-267.33990808,0.0001917,2]
[326838574,1715496633010,-1374.31351278,0.0001917,2]
[326838575,1715496633021,-718.70282773,0.0001917,2]
[326838576,1715496633031,-155.78423505,0.0001917,2]
[326838577,1715496633041,-411.00122083,0.0001917,2]
[326838578,1715496633051,-356.78679677,0.0001917,2]
[326838579,1715496633060,-171.96706206,0.0001917,2]
[326838580,1715496633069,-230.00529736,0.0001917,2]
[326838581,1715496633079,-782.99427827,0.0001917,2]
[326838582,1715496633088,-491.91161374,0.0001917,2]
[326838583,1715496633097,-235.05468866,0.0001917,2]
[326838584,1715496633107,-1054.08384533,0.0001917,2]
[326838585,1715496633117,-2104.38388456,0.0001917,2]
[326838586,1715496633126,-1345.55182538,0.0001917,2]
[326838587,1715496633135,-284.48593494,0.0001917,2]
[326838588,1715496633144,-270.09160226,0.0001917,2]
[326838589,1715496633153,-156.02602648,0.0001917,2]
[326838590,1715496633162,-2043.08679505,0.0001917,2]
[326838591,1715496633171,-155.01195926,0.0001917,2]
[326838592,1715496633180,-154.85211438,0.0001917,2]
[326838593,1715496633189,-1400.60904381,0.0001917,2]
[326838594,1715496633199,-584.46537033,0.0001917,2]
[326838595,1715496633207,-819.81201299,0.0001917,2]
[326838596,1715496633216,-154.8762746,0.0001917,2]
[326838597,1715496633226,-155.07473619,0.0001917,2]
[326838598,1715496633235,-155.08348317,0.0001917,2]
[326838599,1715496633244,-744.79112153,0.0001917,2]
[326838600,1715496633253,-1494.22027638,0.0001917,2]
[326838601,1715496633262,-621.51646234,0.0001917,2]
[326838602,1715496633271,-301.57783954,0.0001917,2]
[326838603,1715496633279,-1679.27061659,0.0001917,2]
[326838604,1715496633288,-190.964764,0.0001917,2]
[326838605,1715496633298,-8602.21054839,0.0001917,2]
[326838606,1715496633307,-189.34154874,0.0001917,2]
[326838607,1715496633316,-151.0,0.0001917,2]
[326838608,1715496633325,-151.0,0.0001917,2]
[326838609,1715496633335,-219.601559,0.0001917,2]
[326838610,1715496633344,-219.601559,0.0001917,2]
[326838611,1715496633353,-317.62661,0.0001917,2]
[326838612,1715496633362,-317.62661,0.0001917,2]
[326838613,1715496633371,-219.601559,0.0001917,2]
[326838614,1715496633380,-219.601559,0.0001917,2]
[326838615,1715496633390,-317.62661,0.0001917,2]
[326838616,1715496633402,-317.62661,0.0001917,2]
[326838617,1715496633411,-151.0,0.0001917,2]
[326838618,1715496633420,-151.0,0.0001917,2]
[326838619,1715496633429,-151.0,0.0001917,2]
[326838620,1715496633440,-151.0,0.0001917,2]
[326838621,1715496633449,-151.0,0.0001917,2]
[326838622,1715496633459,-151.0,0.0001917,2]
[326838623,1715496633469,-151.0,0.0001917,2]
[326838624,1715496633481,-151.0,0.0001917,2]
[326838625,1715496633490,-151.0,0.0001917,2]
[326838626,1715496633499,-261.223116,0.0001917,2]
[326838627,1715496633508,-151.0,0.0001917,2]
[326838628,1715496633517,-151.0,0.0001917,2]
[326838629,1715496633526,-151.0,0.0001917,2]
[326838630,1715496633535,-151.0,0.0001917,2]
[326838631,1715496633544,-151.0,0.0001917,2]
[326838632,1715496633555,-151.0,0.0001917,2]
[326838633,1715496633566,-151.0,0.0001917,2]
[326838634,1715496633578,-151.0,0.0001917,2]
[326838635,1715496633588,-151.0,0.0001917,2]
[326838636,1715496633597,-632.575072,0.0001917,2]
[326838637,1715496633607,-632.575072,0.0001917,2]
[326838638,1715496633616,-632.575072,0.0001917,2]
[326838639,1715496633625,-632.575072,0.0001917,2]
[326838640,1715496633634,-632.575072,0.0001917,2]
[326838641,1715496633643,-632.575072,0.0001917,2]
[326838642,1715496633652,-515.589346,0.0001917,2]
[326838643,1715496633662,-515.589346,0.0001917,2]
[326838644,1715496633671,-515.589346,0.0001917,2]
[326838645,1715496633680,-515.589346,0.0001917,2]
[326838646,1715496633689,-515.589346,0.0001917,2]
[326838647,1715496633698,-515.589346,0.0001917,2]
[326838648,1715496633707,-185.126775,0.0001917,2]
[326838649,1715496633717,-185.126775,0.0001917,2]
[326838650,1715496633726,-185.126775,0.0001917,2]
[326838651,1715496633735,-185.126775,0.0001917,2]
[326838652,1715496633745,-185.126775,0.0001917,2]
[326838653,1715496633753,-185.126775,0.0001917,2]
[326838654,1715496633763,-1363.710023,0.0001917,2]
[326838655,1715496633773,-1363.710023,0.0001917,2]
[326838656,1715496633782,-1363.710023,0.0001917,2]
[326838657,1715496633792,-1363.710023,0.0001917,2]
[326838658,1715496633931,-1363.710023,0.0001917,2]
[326838659,1715496633941,-1363.710023,0.0001917,2]
[326838660,1715496633951,-1363.710023,0.0001917,2]
[326838661,1715496633960,-709.661595,0.0001917,2]
[326838662,1715496633970,-1363.710023,0.0001917,2]
[326838663,1715496633979,-709.661595,0.0001917,2]
[326838664,1715496633988,-709.661595,0.0001917,2]
[326838665,1715496633997,-709.661595,0.0001917,2]
[326838666,1715496634006,-709.661595,0.0001917,2]
[326838667,1715496634015,-709.661595,0.0001917,2]
[326838668,1715496634024,-709.661595,0.0001917,2]
[326838669,1715496634034,-709.661595,0.0001917,2]
[326838670,1715496634043,-249.534543,0.0001917,2]
[326838671,1715496634052,-278.365441,0.0001917,2]
[326838672,1715496634060,-278.365441,0.0001917,2]
[326838673,1715496634070,-278.365441,0.0001917,2]
[326838674,1715496634079,-278.365441,0.0001917,2]
[326838675,1715496634088,-278.365441,0.0001917,2]
[326838676,1715496634097,-278.365441,0.0001917,2]
[326838677,1715496634106,-278.365441,0.0001917,2]
[326838678,1715496634115,-278.365441,0.0001917,2]
[326838679,1715496634124,-1143.85806,0.0001917,2]
[326838680,1715496634134,-1143.85806,0.0001917,2]
[326838681,1715496634143,-1143.85806,0.0001917,2]
[326838682,1715496634152,-1143.85806,0.0001917,2]
[326838683,1715496634161,-1006.015843,0.0001917,2]
[326838684,1715496634171,-1006.015843,0.0001917,2]
[326838685,1715496634180,-1143.85806,0.0001917,2]
[326838686,1715496634189,-1006.015843,0.0001917,2]
[326838687,1715496634200,-1143.85806,0.0001917,2]
[326838688,1715496634209,-1006.015843,0.0001917,2]
[326838689,1715496634219,-1143.85806,0.0001917,2]
[326838690,1715496634229,-197.155618,0.0001917,2]
[326838691,1715496634239,-1143.85806,0.0001917,2]
[326838692,1715496634250,-197.155618,0.0001917,2]
[326838693,1715496634260,-197.155618,0.0001917,2]
[326838694,1715496634269,-197.155618,0.0001917,2]
[326838695,1715496634278,-197.155618,0.0001917,2]
[326838696,1715496634288,-1006.015843,0.0001917,2]
[326838697,1715496634298,-1006.015843,0.0001917,2]
[326838698,1715496634307,-1006.015843,0.0001917,2]
[326838699,1715496634317,-1006.015843,0.0001917,2]
[326838700,1715496634326,-197.155618,0.0001917,2]
[326838701,1715496634336,-197.155618,0.0001917,2]
[326838702,1715496634345,-197.155618,0.0001917,2]
[326838703,1715496634354,-197.155618,0.0001917,2]
[326838704,1715496634363,-197.155618,0.0001917,2]
[326838705,1715496634372,-151.0,0.0001917,2]
[326838706,1715496634381,-151.0,0.0001917,2]
[326838707,1715496634391,-151.0,0.0001917,2]
[326838708,1715496634405,-151.0,0.0001917,2]
[326838709,1715496634414,-151.0,0.0001917,2]
[326838710,1715496634423,-151.0,0.0001917,2]
[326838711,1715496634434,-151.0,0.0001917,2]
[326838712,1715496634444,-151.0,0.0001917,2]
[326838713,1715496634454,-151.0,0.0001917,2]
[326838714,1715496634470,-151.0,0.0001917,2]
[326838715,1715496634481,-151.0,0.0001917,2]
[326838716,1715496634490,-151.0,0.0001917,2]
[326838717,1715496634499,-151.0,0.0001917,2]
[326838718,1715496634510,-151.0,0.0001917,2]
[326838719,1715496634520,-151.0,0.0001917,2]
[326838720,1715496634530,-151.0,0.0001917,2]
[326838721,1715496634541,-212.901238,0.0001917,2]
[326838722,1715496634551,-161.09901,0.0001917,2]
[326838723,1715496634560,-161.09901,0.0001917,2]
[326838724,1715496634570,-161.09901,0.0001917,2]
[326838725,1715496634579,-161.09901,0.0001917,2]
[326838726,1715496634589,-161.09901,0.0001917,2]
[326838727,1715496634598,-161.09901,0.0001917,2]
[326838728,1715496634607,-161.09901,0.0001917,2]
[326838729,1715496634616,-161.09901,0.0001917,2]
[326838730,1715496634626,-161.09901,0.0001917,2]
[326838731,1715496634635,-161.09901,0.0001917,2]
[326838732,1715496634644,-151.0,0.0001917,2]
[326838733,1715496634653,-151.0,0.0001917,2]
[326838734,1715496634663,-151.0,0.0001917,2]
[326838735,1715496634672,-151.0,0.0001917,2]
[326838736,1715496634680,-191.124618,0.0001917,2]
[326838737,1715496634690,-151.0,0.0001917,2]
[326838738,1715496634699,-151.0,0.0001917,2]
[326838739,1715496634708,-151.0,0.0001917,2]
[326838740,1715496634717,-151.0,0.0001917,2]
[326838741,1715496634726,-151.0,0.0001917,2]
[326838742,1715496634735,-151.0,0.0001917,2]
[326838743,1715496634744,-151.0,0.0001917,2]
[326838744,1715496634753,-151.0,0.0001917,2]
[326838745,1715496634763,-217.611997,0.0001917,2]
[326838746,1715496634772,-961.567822,0.0001917,2]
[326838747,1715496634782,-961.567822,0.0001917,2]
[326838748,1715496634791,-961.567822,0.0001917,2]
[326838749,1715496634801,-961.567822,0.0001917,2]
[326838750,1715496634810,-961.567822,0.0001917,2]
[326838751,1715496634819,-961.567822,0.0001917,2]
[326838752,1715496634829,-961.567822,0.0001917,2]
[326838753,1715496634838,-961.567822,0.0001917,2]
[326838754,1715496634847,-961.567822,0.0001917,2]
[326838755,1715496634856,-961.567822,0.0001917,2]
[326838756,1715496634865,-1792.07404,0.0001917,2]
[326838757,1715496634875,-1792.07404,0.0001917,2]
[326838758,1715496634884,-1792.07404,0.0001917,2]
[326838759,1715496634893,-1792.07404,0.0001917,2]
[326838760,1715496634902,-1792.07404,0.0001917,2]
[326838761,1715496634911,-1792.07404,0.0001917,2]
[326838762,1715496634921,-1792.07404,0.0001917,2]
[326838763,1715496634931,-151.0,0.0001917,2]
[326838764,1715496634939,-1792.07404,0.0001917,2]
[326838765,1715496634948,-151.0,0.0001917,2]
[326838766,1715496634957,-231.737692,0.0001917,2]
[326838767,1715496634966,-1792.07404,0.0001917,2]
[326838768,1715496634975,-1792.07404,0.0001917,2]
[326838769,1715496634984,-1480.324459,0.0001917,2]
[326838770,1715496634993,-1480.324459,0.0001917,2]
[326838771,1715496635002,-1480.324459,0.0001917,2]
[326838772,1715496635011,-1480.324459,0.0001917,2]
[326838773,1715496635021,-1480.324459,0.0001917,2]
[326838774,1715496635030,-1480.324459,0.0001917,2]
[326838775,1715496635039,-1480.324459,0.0001917,2]
[326838776,1715496635050,-1480.324459,0.0001917,2]
[326838777,1715496635059,-1480.324459,0.0001917,2]
[326838778,1715496635068,-1480.324459,0.0001917,2]
[326838779,1715496635077,-151.0,0.0001917,2]
[326838780,1715496635086,-151.0,0.0001917,2]
[326838781,1715496635096,-151.0,0.0001917,2]
[326838782,1715496635105,-151.0,0.0001917,2]
[326838783,1715496635114,-151.0,0.0001917,2]
[326838784,1715496635123,-151.0,0.0001917,2]
[326838785,1715496635132,-151.0,0.0001917,2]
[326838786,1715496635141,-250.39034975,0.00019171,2]
[326838787,1715496635150,-156.15796356,0.00019171,2]
[326838788,1715496635159,-470.75279812,0.00019171,2]
[326838789,1715496635168,-155.34621447,0.00019171,2]
[326838790,1715496635178,-317.66597571,0.00019171,2]
[326838791,1715496635187,-269.27711768,0.00019171,2]
[326838792,1715496635197,-219.601559,0.00019171,2]
[326838793,1715496635206,-317.62661,0.00019171,2]
[326838794,1715496635216,-219.601559,0.00019171,2]
[326838795,1715496635226,-317.62661,0.00019171,2]
[326838796,1715496635235,-196.68406566,0.00019172,2]
[326838797,1715496635244,-62525.03509015,0.00019172,2]
[326838798,1715496635254,-151.0,0.00019172,2]
[326838799,1715496635264,-151.0,0.00019172,2]
[326838800,1715496635274,-219.601559,0.00019172,2]
[326838801,1715496635283,-219.601559,0.00019172,2]
[326838802,1715496635293,-219.601559,0.00019172,2]
[326838803,1715496635302,-317.62661,0.00019172,2]
[326838804,1715496635312,-317.62661,0.00019172,2]
[326838805,1715496635321,-317.62661,0.00019172,2]
[326838806,1715496635330,-219.601559,0.00019172,2]
[326838807,1715496635339,-317.62661,0.00019172,2]
[326838808,1715496635349,-219.601559,0.00019172,2]
[326838809,1715496635358,-317.62661,0.00019172,2]
[326838810,1715496635368,-219.601559,0.00019172,2]
[326838811,1715496635378,-317.62661,0.00019172,2]
[326838812,1715496635387,-151.0,0.00019172,2]
[326838813,1715496635400,-151.0,0.00019172,2]
[326838814,1715496635410,-151.0,0.00019172,2]
[326838815,1715496635419,-151.0,0.00019172,2]
[326838816,1715496635429,-151.0,0.00019172,2]
[326838817,1715496635439,-151.0,0.00019172,2]
[326838818,1715496635448,-151.0,0.00019172,2]
[326838819,1715496635458,-151.0,0.00019172,2]
[326838820,1715496635467,-151.0,0.00019172,2]
[326838821,1715496635479,-301.80102,0.00019172,2]
[326838822,1715496635489,-151.0,0.00019172,2]
[326838823,1715496635498,-151.0,0.00019172,2]
[326838824,1715496635508,-151.0,0.00019172,2]
[326838825,1715496635518,-151.0,0.00019172,2]
[326838826,1715496635527,-151.0,0.00019172,2]
[326838827,1715496635536,-289.117627,0.00019172,2]
[326838828,1715496635546,-632.575072,0.00019172,2]
[326838829,1715496635555,-632.575072,0.00019172,2]
[326838830,1715496635565,-632.575072,0.00019172,2]
[326838831,1715496635574,-632.575072,0.00019172,2]
[326838832,1715496635585,-632.575072,0.00019172,2]
[326838833,1715496635594,-632.575072,0.00019172,2]
[326838834,1715496635603,-632.575072,0.00019172,2]
[326838835,1715496635612,-632.575072,0.00019172,2]
[326838836,1715496635621,-515.589346,0.00019172,2]
[326838837,1715496635631,-515.589346,0.00019172,2]
[326838838,1715496635641,-515.589346,0.00019172,2]